Workbook

Sheet паспорт
A1: ПАТ "УКРТРАНСГАЗ" | G1: ПАСПОРТ ФІЗИКО-ХІМІЧНИХ ПОКАЗНИКІВ ПРИРОДНОГО ГАЗУ № 608
A2: Філія "УМГ "ХАРКІВТРАНСГАЗ" | G2: переданого Запорізьким ЛВУМГ та прийнятого ПАТ "Запоріжгаз", ПРаТ "Енерготехнології"
A3: Запорізький п/м Запорізького ЛВУМГ | M3: Маршрут № 608
A4: Вимірювальна хіміко-аналітична лабораторія
A5: Свідоцтво № АВ-14-15 чинне до 10.09.2020 р. | K5: по газопроводам ШДО, ШДКРІ | V5: за період з 01.05.2017р. по 31.05.2017р.
A7: Число місяця | B7: Компонентний склад, мол. % | N7: Фізико-хімічні показники газу обчислені на основі компонентного складу, 101,325 кПа | X7: Температура точки роси за вологою (Р = 3.92 МПа), °С | Y7: Температура точки роси за вуглеводнями, °С | Z7: Вміст сірководню, г/м3 | AA7: Вміст меркаптанової сірки, г/м3 | AB7: Вміст механічних домішок, г/м3
N8: Густина абсолютна, кг/м3,при 20 °С, | O8: Температура вимірювання/згоряння при 20/25°С
B9: метан, С1 | C9: етан, С2 | D9: пропан, С3 | E9: ізо-бутан, і-С4 | F9: н-бутан, н-С4 | G9: нео-пентан, нео-С5 | H9: ізо-пентан, і-С5 | I9: н-пентан, н-С5 | J9: гексани та вищі, С6+ | K9: кисень, О2 | L9: азот, N2 | M9: діоксид вуглецю, CО2 | O9: Теплота згоряння нижча | R9: Теплота згоряння вища | U9: Число Воббе вище
O10: ккал/м³ | P10: МДж/м³ | Q10: кВт⋅год/м³ | R10: ккал/м³ | S10: МДж/м³ | T10: кВт⋅год/м³ | U10: ккал/м³ | V10: МДж/м³ | W10: кВт⋅год/м³
A11: 1 | O11: 8222 | P11: 34.42 | Q11: 9.56 | R11: 9116 | S11: 38.17 | T11: 10.6 | U11: 11926 | V11: 49.93 | W11: 13.87 | AC11: =SUM(B11:M11)+$K$42+$N$42 -> 0
A12: 2 | O12: 8222 | P12: 34.42 | Q12: 9.56 | R12: 9116 | S12: 38.17 | T12: 10.6 | U12: 11926 | V12: 49.93 | W12: 13.87 | AC12: 0
A13: 3 | B13: 94.9513 | C13: 2.8052 | D13: 0.9103 | E13: 0.1403 | F13: 0.1452 | G13: 0.0019 | H13: 0.0291 | I13: 0.0209 | J13: 0.019 | K13: 0.0063 | L13: 0.7145 | M13: 0.2559 | N13: 0.7087 | O13: =P13*238.8459 -> 8266.767099 | P13: 34.6113 | Q13: =P13/3.6 -> 9.61425 | R13: =S13*238.8459 -> 9163.609569 | S13: 38.3662 | T13: =S13/3.6 -> 10.65727778 | U13: =V13*238.8459 -> 11945.92546 | V13: 50.0152 | W13: =V13/3.6 -> 13.89311111 | AB13: відсутні | AC13: 99.9999 | AD13: =IF(AC13=100,"ОК"," ") -> 
A14: 4 | B14: 94.3853 | C14: 3.0588 | D14: 1.0531 | E14: 0.1565 | F14: 0.1857 | G14: 0.0022 | H14: 0.039 | I14: 0.0299 | J14: 0.0279 | K14: 0.0063 | L14: 0.7773 | M14: 0.278 | N14: 0.7142 | O14: =P14*238.8459 -> 8311.57459 | P14: 34.7989 | Q14: =P14/3.6 -> 9.666361111 | R14: =S14*238.8459 -> 9211.354864 | S14: 38.5661 | T14: =S14/3.6 -> 10.71280556 | U14: =V14*238.8459 -> 11962.2864 | V14: 50.0837 | W14: =V14/3.6 -> 13.91213889 | X14: -13.8 | Y14: -8.6 | AC14: 100 | AD14: =IF(AC14=100,"ОК"," ") -> ОК
A15: 5 | B15: 94.0312 | C15: 3.2327 | D15: 1.1549 | E15: 0.1685 | F15: 0.2154 | G15: 0.0023 | H15: 0.0472 | I15: 0.0375 | J15: 0.0345 | K15: 0.003 | L15: 0.7854 | M15: 0.2873 | N15: 0.7178 | O15: =P15*238.8459 -> 8347.64032 | P15: 34.9499 | Q15: =P15/3.6 -> 9.708305556 | R15: =S15*238.8459 -> 9249.976246 | S15: 38.7278 | T15: 10.75772222 | U15: 11981.87177 | V15: 50.1657 | W15: 13.93491667 | AC15: 99.9999
A16: 6 | O16: 8347.64032 | P16: 34.9499 | Q16: 9.708305556 | R16: 9249.976246 | S16: 38.7278 | T16: 10.75772222 | U16: 11981.87177 | V16: 50.1657 | W16: 13.93491667 | AC16: 0
A17: 7 | O17: 8347.64032 | P17: 34.9499 | Q17: 9.708305556 | R17: 9249.976246 | S17: 38.7278 | T17: 10.75772222 | U17: 11981.87177 | V17: 50.1657 | W17: 13.93491667 | AC17: 0
A18: 8 | O18: 8347.64032 | P18: 34.9499 | Q18: 9.708305556 | R18: 9249.976246 | S18: 38.7278 | T18: 10.75772222 | U18: 11981.87177 | V18: 50.1657 | W18: 13.93491667 | AC18: 0
A19: 9 | O19: 8347.64032 | P19: 34.9499 | Q19: 9.708305556 | R19: 9249.976246 | S19: 38.7278 | T19: 10.75772222 | U19: 11981.87177 | V19: 50.1657 | W19: 13.93491667 | AC19: 0
A20: 10 | B20: 94.4978 | C20: 2.9768 | D20: 1.0295 | E20: 0.1559 | F20: 0.1861 | G20: 0.0021 | H20: 0.0406 | I20: 0.0311 | J20: 0.0312 | K20: 0.0064 | L20: 0.7705 | M20: 0.2719 | N20: 0.7135 | O20: 8306.152788 | P20: 34.7762 | Q20: 9.660055556 | R20: 9205.598678 | S20: 38.542 | T20: 10.70611111 | U20: 11960.71002 | V20: 50.0771 | W20: 13.91030556 | Z20: < 0,0001 | AA20: 0.0041 | AC20: 99.9999
A21: 11 | B21: 94.6665 | C21: 2.9078 | D21: 0.9913 | E21: 0.1503 | F21: 0.1748 | G21: 0.0021 | H21: 0.0376 | I21: 0.0288 | J21: 0.0291 | K21: 0.0038 | L21: 0.7427 | M21: 0.2651 | N21: 0.7119 | O21: 8294.974799 | P21: 34.7294 | Q21: 9.647055556 | R21: 9193.728037 | S21: 38.4923 | T21: 10.69230556 | U21: 11958.48875 | V21: 50.0678 | W21: 13.90772222 | X21: -18.4 | Y21: -14.3 | AC21: 99.9999
A22: 12 | B22: 94.8253 | C22: 2.7739 | D22: 0.9491 | E22: 0.1438 | F22: 0.1708 | G22: 0.002 | H22: 0.0377 | I22: 0.0289 | J22: 0.0294 | K22: 0.007 | L22: 0.7826 | M22: 0.2494 | N22: 0.7105 | O22: 8277.347972 | P22: 34.6556 | Q22: 9.626555556 | R22: 9174.787557 | S22: 38.413 | T22: 10.67027778 | U22: 11945.73438 | V22: 50.0144 | W22: 13.89288889 | AC22: 99.9999
A23: 13 | B23: 94.6639 | C23: 2.7876 | D23: 0.9838 | E23: 0.1466 | F23: 0.1902 | G23: 0.0022 | H23: 0.0454 | I23: 0.0362 | J23: 0.0391 | K23: 0.0073 | L23: 0.8573 | M23: 0.2404 | N23: 0.7123 | O23: 8288.072153 | P23: 34.7005 | Q23: 9.639027778 | R23: 9186.061083 | S23: 38.4602 | T23: 10.68338889 | U23: 11945.42388 | V23: 50.0131 | W23: 13.89252778 | AC23: 100 | AD23: ОК
A24: 14 | O24: 8288.072153 | P24: 34.7005 | Q24: 9.639027778 | R24: 9186.061083 | S24: 38.4602 | T24: 10.68338889 | U24: 11945.42388 | V24: 50.0131 | W24: 13.89252778 | AC24: 0
A25: 15 | B25: 95.1891 | C25: 2.5072 | D25: 0.8394 | E25: 0.1258 | F25: 0.1519 | G25: 0.0018 | H25: 0.0352 | I25: 0.0271 | J25: 0.0297 | K25: 0.0084 | L25: 0.8569 | M25: 0.2274 | N25: 0.707 | O25: 8234.881171 | P25: 34.4778 | Q25: 9.577166667 | R25: 9129.120221 | S25: 38.2218 | T25: 10.61716667 | U25: 11915.49649 | V25: 49.8878 | W25: 13.85772222 | AC25: 99.9999
A26: 16 | B26: 95.0062 | C26: 2.6209 | D26: 0.8962 | E26: 0.1343 | F26: 0.166 | G26: 0.002 | H26: 0.0391 | I26: 0.0306 | J26: 0.0317 | K26: 0.0076 | L26: 0.8364 | M26: 0.2291 | N26: 0.7089 | O26: 8257.237147 | P26: 34.5714 | Q26: 9.603166667 | R26: 9153.148118 | S26: 38.3224 | T26: 10.64511111 | U26: 11931.02147 | V26: 49.9528 | W26: 13.87577778 | X26: -14.3 | Y26: -9.8 | AC26: 100.0001
A27: 17 | B27: 95.0199 | C27: 2.6449 | D27: 0.8893 | E27: 0.1338 | F27: 0.1586 | G27: 0.0019 | H27: 0.036 | I27: 0.0276 | J27: 0.0285 | K27: 0.0077 | L27: 0.8106 | M27: 0.2412 | N27: 0.7086 | O27: 8254.991996 | P27: 34.562 | Q27: 9.600555556 | R27: 9150.759659 | S27: 38.3124 | T27: 10.64233333 | U27: 11930.47213 | V27: 49.9505 | W27: 13.87513889 | AB27: відсутні | AC27: 100 | AD27: ОК
A28: 18 | B28: 95.2768 | C28: 2.5702 | D28: 0.8253 | E28: 0.1269 | F28: 0.134 | G28: 0.0017 | H28: 0.0282 | I28: 0.0207 | J28: 0.02 | K28: 0.0038 | L28: 0.7531 | M28: 0.2393 | N28: 0.7059 | O28: 8235.358863 | P28: 34.4798 | Q28: 9.577722222 | R28: 9129.908412 | S28: 38.2251 | T28: 10.61808333 | U28: 11925.83852 | V28: 49.9311 | W28: 13.86975 | Z28: < 0,0001 | AA28: 0.0019 | AC28: 100 | AD28: ОК
A29: 19 | B29: 94.9452 | C29: 2.717 | D29: 0.9097 | E29: 0.137 | F29: 0.1602 | G29: 0.002 | H29: 0.0362 | I29: 0.0279 | J29: 0.0302 | K29: 0.0045 | L29: 0.7834 | M29: 0.2467 | N29: 0.7093 | O29: 8265.620638 | P29: 34.6065 | Q29: 9.612916667 | R29: 9162.224262 | S29: 38.3604 | T29: 10.65566667 | U29: 11939.3572 | V29: 49.9877 | W29: 13.88547222 | AC29: 100 | AD29: ОК
A30: 20 | O30: 8265.620638 | P30: 34.6065 | Q30: 9.612916667 | R30: 9162.224262 | S30: 38.3604 | T30: 10.65566667 | U30: 11939.3572 | V30: 49.9877 | W30: 13.88547222 | AC30: 0 | AD30: =IF(AC30=100,"ОК"," ") -> 
A31: 21 | O31: 8265.620638 | P31: 34.6065 | Q31: 9.612916667 | R31: 9162.224262 | S31: 38.3604 | T31: 10.65566667 | U31: 11939.3572 | V31: 49.9877 | W31: 13.88547222 | AC31: 0
A32: 22 | B32: 95.1587 | C32: 2.6893 | D32: 0.8678 | E32: 0.1337 | F32: 0.1381 | G32: 0.0019 | H32: 0.0281 | I32: 0.0204 | J32: 0.0189 | K32: 0.0065 | L32: 0.6921 | M32: 0.2446 | N32: 0.707 | O32: 8253.917189 | P32: 34.5575 | Q32: 9.599305556 | R32: 9149.971468 | S32: 38.3091 | T32: 10.64141667 | U32: 11942.50996 | V32: 50.0009 | W32: 13.88913889 | AC32: 100.0001
A33: 23 | B33: 95.1367 | C33: 2.7136 | D33: 0.8767 | E33: 0.1354 | F33: 0.1396 | G33: 0.0019 | H33: 0.0284 | I33: 0.0204 | J33: 0.0188 | K33: 0.0065 | L33: 0.6792 | M33: 0.243 | N33: 0.7073 | O33: 8258.335838 | P33: 34.576 | Q33: 9.604444444 | R33: 9154.748386 | S33: 38.3291 | T33: 10.64697222 | U33: 11946.83307 | V33: 50.019 | W33: 13.89416667 | AC33: 100.0002 | AD33: =IF(AC33=100,"ОК"," ") -> 
A34: 24 | B34: 95.0064 | C34: 2.7644 | D34: 0.9081 | E34: 0.139 | F34: 0.1503 | G34: 0.002 | H34: 0.0317 | I34: 0.0232 | J34: 0.022 | K34: 0.0067 | L34: 0.7059 | M34: 0.2403 | N34: 0.7085 | O34: 8268.653981 | P34: 34.6192 | Q34: 9.616444444 | R34: 9165.735297 | S34: 38.3751 | T34: 10.65975 | U34: 11950.5113 | V34: 50.0344 | W34: 13.89844444 | AC34: 100 | AD34: ОК
A35: 25 | B35: 94.6346 | C35: 2.9285 | D35: 1.0027 | E35: 0.1514 | F35: 0.1801 | G35: 0.0022 | H35: 0.0414 | I35: 0.0319 | J35: 0.0347 | K35: 0.0065 | L35: 0.7358 | M35: 0.2501 | N35: 0.7124 | O35: 8303.859867 | P35: 34.7666 | Q35: 9.657388889 | R35: 9203.329642 | S35: 38.5325 | T35: 10.70347222 | U35: 11966.72894 | V35: 50.1023 | W35: 13.91730556 | X35: -15 | Y35: -9.8 | AC35: 99.9999
A36: 26 | B36: 94.5319 | C36: 2.9841 | D36: 1.0214 | E36: 0.1536 | F36: 0.1838 | G36: 0.0022 | H36: 0.0416 | I36: 0.0324 | J36: 0.0338 | K36: 0.0064 | L36: 0.7487 | M36: 0.2601 | N36: 0.7132 | O36: 8308.827862 | P36: 34.7874 | Q36: 9.663166667 | R36: 9208.584252 | S36: 38.5545 | T36: 10.70958333 | U36: 11966.65728 | V36: 50.102 | W36: 13.91722222 | AC36: 100 | AD36: ОК
A37: 27 | O37: 8308.827862 | P37: 34.7874 | Q37: 9.663166667 | R37: 9208.584252 | S37: 38.5545 | T37: 10.70958333 | U37: 11966.65728 | V37: 50.102 | W37: 13.91722222 | AC37: 0
A38: 28 | O38: 8308.827862 | P38: 34.7874 | Q38: 9.663166667 | R38: 9208.584252 | S38: 38.5545 | T38: 10.70958333 | U38: 11966.65728 | V38: 50.102 | W38: 13.91722222 | AC38: 0
A39: 29 | B39: 95.0185 | C39: 2.7856 | D39: 0.9034 | E39: 0.139 | F39: 0.1425 | G39: 0.0018 | H39: 0.0283 | I39: 0.0204 | J39: 0.0182 | K39: 0.0064 | L39: 0.6821 | M39: 0.2539 | N39: 0.7082 | O39: =P39*238.8459 -> 8266.050561 | P39: 34.6083 | Q39: 9.613416667 | R39: 9162.964685 | S39: 38.3635 | T39: 10.65652778 | U39: 11949.38872 | V39: 50.0297 | W39: 13.89713889 | AC39: 100.0001
A40: 30 | B40: 95.1316 | C40: 2.7012 | D40: 0.9053 | E40: 0.14 | F40: 0.1464 | G40: 0.0018 | H40: 0.0288 | I40: 0.0207 | J40: 0.0184 | K40: 0.0036 | L40: 0.6668 | M40: 0.2353 | N40: 0.7076 | O40: =P40*238.8459 -> 8265.142947 | P40: 34.6045 | Q40: 9.612361111 | R40: 9162.104839 | S40: 38.3599 | T40: 10.65552778 | U40: 11953.9268 | V40: 50.0487 | W40: 13.90241667 | X40: -13.5 | Y40: -8.4 | AC40: 99.9999
A41: 31 | B41: 95.3685 | C41: 2.576 | D41: 0.8606 | E41: 0.135 | F41: 0.1382 | G41: 0.0018 | H41: 0.027 | I41: 0.0193 | J41: 0.0177 | K41: 0.0025 | L41: 0.64 | M41: 0.2133 | N41: 0.7056 | O41: =P41*238.8459 -> 8252.269153 | P41: 34.5506 | Q41: =P41/3.6 -> 9.597388889 | R41: 9148.466739 | S41: 38.3028 | T41: 10.63966667 | U41: 11952.89976 | V41: 50.0444 | W41: 13.90122222 | AC41: 99.9999
A42: Рівень одоризації відповідає чинним нормативним документам | O42: 8283.235259 | P42: 34.68000206 | Q42: 9.633263019 | R42: 9181.164568 | S42: 38.43989906 | T42: 10.67757253
H43: Середньозважене значення теплоти згоряння:
B46: Начальник управління Запорізького ЛВУМГ Дереновський О.Б.
C47: Підрозділу підприємства, якому підпорядкована лабораторія | O47: прізвище | T47: підпис | Y47: дата
B48: Завідувач лабораторії Огородник Ю.В.
C49: Лабораторія, де здійснювалось вимірювання газу | O49: прізвище | T49: підпис | Y49: дата
B50: Начальник служби ГВ та М Учуєв Г.М.
C51: Підрозділу, відповідального за облік газу за маршрутом | O51: прізвище | T51: підпис | Y51: дата

Sheet додаток
A2: Додаток до Паспорту фізико-хімічних показників природного газу № 608
A4: Область | B4: ГРС, прямий споживач | C4: Cередньозважене значення вищої теплоти згоряння
C5: МДж/м³ | D5: ккал/м³ | E5: кВт*год./м³
A6: Запорізька область | B6: ГРС-1 м.Запоріжжя | C6: 38.4399467 | D6: 9181.223665 | E6: 10.67776297
B7: ГРС с.Тернівка (к-п Дніпро) | C7: 38.42155274 | D7: 9176.830344 | E7: 10.67265354
B8: ГРС с.Сергіївка (р-п Чапаєвський) | C8: 38.43022266 | D8: 9178.901119 | E8: 10.67506185
B9: ПРаТ "Енерготехнології" | C9: 38.44127455 | D9: 9181.540818 | E9: 10.67813182
A10: Середньозважене значення вищої теплоти згоряння по маршруту № 608 | C10: 38.43989906 | D10: 9181.212288 | E10: 10.67774974
A14: Начальник управління Запорізького ЛВУМГ Дереновський О.Б.
A15: Підрозділу підприємства, якому підпорядкована лабораторія | D15: прізвище | E15: підпис | F15: дата
A16: Завідувач лабораторії Огородник Ю.В.
A17: Лабораторія, де здійснювалось вимірювання газу | D17: прізвище | E17: підпис | F17: дата
A19: Начальник служби ГВ та М Учуєв Г.М.
A20: Підрозділу, відповідального за облік газу за маршрутом | D20: прізвище | E20: підпис | F20: дата

Sheet variablesList (hidden)
A1: 3 | B1: x:\gaysin | C1: 10, 11, 24, 25, 127, 128, 132, 180, 207, 215 | D1: x:\
B2: x:\Illinci
B3: x:\Talne

Sheet Лист1
A1: Данные по объекту Быт-1 (осн.) за 5/17. | G1: Данные по объекту Быт-2 (осн.) за 5/17. | M1: Данные по объекту Запорожсталь (осн.) за 5/17. | S1: Данные по объекту ЗапорожстальТД (осн.) за 5/17. | Y1: Данные по объекту ПерПерепад (осн.) за 5/17. | AE1: Данные по объекту Чапаевский (осн.) за 5/17. | AK1: Данные по объекту Терновка (осн.) за 5/17.
A2: День | B2: V, м3 | C2: dP, кгс/м2 | D2: Pабс, кгс/см2 | E2: T, °C | F2: ABC | G2: День | H2: V, м3 | I2: dP, кгс/м2 | J2: Pабс, кгс/см2 | K2: T, °C | L2: ABC | M2: День | N2: V, м3 | O2: dP, кгс/м2 | P2: Pабс, кгс/см2 | Q2: T, °C | R2: ABC | S2: День | T2: V, м3 | U2: dP, кгс/м2 | V2: Pабс, кгс/см2 | W2: T, °C | X2: ABC | Y2: День | Z2: V, м3 | AA2: dP, кгс/м2 | AB2: Pабс, кгс/см2 | AC2: T, °C | AD2: ABC | AE2: День | AF2: V, м3 | AG2: dP, кгс/м2 | AH2: Pабс, кгс/см2 | AI2: T, °C | AJ2: ABC | AK2: День | AL2: V, м3 | AM2: dP, кгс/м2 | AN2: Pабс, кгс/см2 | AO2: T, °C | AP2: ABC
A3: 1 | B3: 0 | C3: 0 | D3: 42.14 | E3: 24.43 | G3: 1 | H3: 0 | I3: 0 | J3: 42.13 | K3: 23.83 | M3: 1 | N3: 0 | O3: 0 | P3: 42.12 | Q3: 24.7 | S3: 1 | T3: 619579.44 | U3: 466.475 | V3: 6.61 | W3: 3.19 | X3: A | Y3: 1 | Z3: 407833.88 | AA3: 253.455 | AB3: 6.6 | AC3: 2.92 | AE3: 1 | AF3: 4881.44 | AG3: 37.788 | AH3: 2.99 | AI3: 15.86 | AK3: 1 | AL3: 317.63 | AM3: 23.277 | AN3: 2.49 | AO3: 21.9 | AP3: A | AQ3: =B3+H3+N3+T3+Z3 -> 1027413.32 | AR3: =AQ3+AF3+AL3 -> 1032612.39
A4: 2 | B4: 0 | C4: 0 | D4: 42.11 | E4: 25.58 | G4: 2 | H4: 0 | I4: 0 | J4: 42.1 | K4: 25.02 | M4: 2 | N4: 0 | O4: 0 | P4: 42.09 | Q4: 25.8 | S4: 2 | T4: 622628.94 | U4: 470.903 | V4: 6.61 | W4: 3.2 | X4: A | Y4: 2 | Z4: 445392.72 | AA4: 299.061 | AB4: 6.6 | AC4: 2.93 | AE4: 2 | AF4: 4402.67 | AG4: 30.346 | AH4: 3.02 | AI4: 18.34 | AK4: 2 | AL4: 224.51 | AM4: 11.128 | AN4: 2.4 | AO4: 23.31 | AP4: A | AQ4: =B4+H4+N4+T4+Z4 -> 1068021.66 | AR4: =AQ4+AF4+AL4 -> 1072648.84
A5: 3 | B5: 0 | C5: 0 | D5: 42.39 | E5: 23.95 | G5: 3 | H5: 0 | I5: 0 | J5: 42.37 | K5: 23.38 | M5: 3 | N5: 0 | O5: 0 | P5: 42.36 | Q5: 24.02 | S5: 3 | T5: 697698.19 | U5: 607.009 | V5: 6.61 | W5: 8.09 | X5: A | Y5: 3 | Z5: 467897.94 | AA5: 340.002 | AB5: 6.6 | AC5: 8.06 | AE5: 3 | AF5: 3906.15 | AG5: 23.727 | AH5: 3 | AI5: 17.05 | AK5: 3 | AL5: 224.95 | AM5: 11.994 | AN5: 2.41 | AO5: 20.98 | AP5: A | AQ5: =B5+H5+N5+T5+Z5 -> 1165596.13 | AR5: 1169727.23
A6: 4 | B6: 0 | C6: 0 | D6: 42.47 | E6: 23.42 | F6: B | G6: 4 | H6: 0 | I6: 0 | J6: 42.45 | K6: 23.29 | L6: B | M6: 4 | N6: 0 | O6: 0 | P6: 42.44 | Q6: 24.22 | R6: B | S6: 4 | T6: 812954.69 | U6: 829.266 | V6: 6.61 | W6: 3.97 | X6: AB | Y6: 4 | Z6: 453659.31 | AA6: 314.568 | AB6: 6.6 | AC6: 4.06 | AD6: B | AE6: 4 | AF6: 3932.66 | AG6: 317.576 | AH6: 3.03 | AI6: 17.62 | AJ6: ABC | AK6: 4 | AL6: 206.73 | AM6: 10.334 | AN6: 2.42 | AO6: 21.52 | AP6: AB | AQ6: 1266614 | AR6: 1270753.39
A7: 5 | B7: 0 | C7: 0 | D7: 42.69 | E7: 20.97 | F7: B | G7: 5 | H7: 0 | I7: 0 | J7: 42.67 | K7: 21.02 | L7: B | M7: 5 | N7: 0 | O7: 0 | P7: 42.67 | Q7: 22.05 | R7: B | S7: 5 | T7: 655545 | U7: 537.984 | V7: 6.62 | W7: 5.27 | X7: AB | Y7: 5 | Z7: 444816.84 | AA7: 307.366 | AB7: 6.6 | AC7: 5.13 | AD7: B | AE7: 5 | AF7: 4119.5 | AG7: 610.906 | AH7: 3 | AI7: 14.23 | AJ7: B | AK7: 5 | AL7: 234.09 | AM7: 12.063 | AN7: 2.41 | AO7: 18.98 | AP7: AB | AQ7: 1100361.84 | AR7: 1104715.43
A8: 6 | B8: 0 | C8: 0 | D8: 42.56 | E8: 23.45 | G8: 6 | H8: 0 | I8: 0 | J8: 42.55 | K8: 22.69 | M8: 6 | N8: 0 | O8: 0 | P8: 42.54 | Q8: 23.45 | S8: 6 | T8: 615441.63 | U8: 467.354 | V8: 6.61 | W8: 3.3 | X8: A | Y8: 6 | Z8: 401977.5 | AA8: 250.249 | AB8: 6.6 | AC8: 2.98 | AE8: 6 | AF8: 4439.2 | AG8: 726.985 | AH8: 3.01 | AI8: 14.63 | AK8: 6 | AL8: 231.25 | AM8: 12.071 | AN8: 2.44 | AO8: 20.5 | AP8: A | AQ8: 1017419.13 | AR8: 1022089.58
A9: 7 | B9: 0 | C9: 0 | D9: 42.77 | E9: 25.33 | G9: 7 | H9: 0 | I9: 0 | J9: 42.75 | K9: 24.57 | M9: 7 | N9: 0 | O9: 0 | P9: 42.74 | Q9: 25.29 | S9: 7 | T9: 664943.56 | U9: 543.028 | V9: 6.6 | W9: 1.83 | X9: A | Y9: 7 | Z9: 362642.63 | AA9: 202.751 | AB9: 6.6 | AC9: 1.78 | AE9: 7 | AF9: 4340.75 | AG9: 717.466 | AH9: 3.05 | AI9: 17.51 | AK9: 7 | AL9: 234.75 | AM9: 13.197 | AN9: 2.5 | AO9: 22.72 | AP9: A | AQ9: 1027586.19 | AR9: 1032161.69
A10: 8 | B10: 0 | C10: 0 | D10: 43 | E10: 20.84 | G10: 8 | H10: 0 | I10: 0 | J10: 42.99 | K10: 20.62 | M10: 8 | N10: 0 | O10: 0 | P10: 42.98 | Q10: 21.14 | S10: 8 | T10: 655529.94 | U10: 534.746 | V10: 6.6 | W10: 3.87 | X10: A | Y10: 8 | Z10: 386679.88 | AA10: 230.556 | AB10: 6.59 | AC10: 3.92 | AE10: 8 | AF10: 4420.53 | AG10: 722.596 | AH10: 3.01 | AI10: 15.15 | AK10: 8 | AL10: 235.06 | AM10: 16.28 | AN10: 2.5 | AO10: 18.7 | AP10: A | AQ10: 1042209.82 | AR10: 1046865.41
A11: 9 | B11: 0 | C11: 0 | D11: 43.13 | E11: 20.75 | G11: 9 | H11: 0 | I11: 0 | J11: 43.11 | K11: 20.36 | M11: 9 | N11: 0 | O11: 0 | P11: 43.11 | Q11: 20.86 | S11: 9 | T11: 579758.38 | U11: 415.306 | V11: 6.6 | W11: 3.69 | X11: A | Y11: 9 | Z11: 414959.47 | AA11: 263.966 | AB11: 6.59 | AC11: 3.55 | AE11: 9 | AF11: 4129.44 | AG11: 636.373 | AH11: 2.99 | AI11: 14.12 | AK11: 9 | AL11: 228.39 | AM11: 16.727 | AN11: 2.4 | AO11: 18.8 | AP11: A | AQ11: 994717.85 | AR11: 999075.68
A12: 10 | B12: 0 | C12: 0 | D12: 42.94 | E12: 14.49 | F12: B | G12: 10 | H12: 0 | I12: 0 | J12: 42.93 | K12: 14.18 | L12: B | M12: 10 | N12: 0 | O12: 0 | P12: 42.92 | Q12: 14.87 | R12: B | S12: 10 | T12: 602240.44 | U12: 449.888 | V12: 6.61 | W12: 2.95 | X12: AB | Y12: 10 | Z12: 480688.84 | AA12: 352.428 | AB12: 6.59 | AC12: 2.56 | AD12: B | AE12: 10 | AF12: 5415.33 | AG12: 1055.414 | AH12: 2.9 | AI12: 6.45 | AJ12: B | AK12: 10 | AL12: 401.54 | AM12: 25.353 | AN12: 2.37 | AO12: 11.06 | AP12: AB | AQ12: 1082929.28 | AR12: 1088746.15
A13: 11 | B13: 0 | C13: 0 | D13: 42.8 | E13: 16.19 | F13: B | G13: 11 | H13: 0 | I13: 0 | J13: 42.78 | K13: 15.83 | L13: B | M13: 11 | N13: 0 | O13: 0 | P13: 42.78 | Q13: 16.17 | R13: B | S13: 11 | T13: 710926.5 | U13: 622.222 | V13: 6.62 | W13: 2.31 | X13: AB | Y13: 11 | Z13: 465731.5 | AA13: 331.937 | AB13: 6.6 | AC13: 2.1 | AD13: B | AE13: 11 | AF13: 6700.9 | AG13: 1600.885 | AH13: 3 | AI13: 8.78 | AJ13: B | AK13: 11 | AL13: 467.96 | AM13: 32.516 | AN13: 2.35 | AO13: 13.89 | AP13: AB | AQ13: 1176658 | AR13: 1183826.86
A14: 12 | B14: 0 | C14: 0 | D14: 43.37 | E14: 20.49 | F14: B | G14: 12 | H14: 0 | I14: 0 | J14: 43.36 | K14: 20.11 | L14: B | M14: 12 | N14: 0 | O14: 0 | P14: 43.35 | Q14: 20.4 | R14: B | S14: 12 | T14: 680778.19 | U14: 571.999 | V14: 6.61 | W14: 1.81 | X14: AB | Y14: 12 | Z14: 451475.13 | AA14: 312.534 | AB14: 6.6 | AC14: 1.58 | AD14: B | AE14: 12 | AF14: 5455.51 | AG14: 1059.031 | AH14: 3.04 | AI14: 13.48 | AJ14: B | AK14: 12 | AL14: 272.29 | AM14: 28.7 | AN14: 2.56 | AO14: 17.62 | AP14: AB | AQ14: 1132253.32 | AR14: 1137981.12
A15: 13 | B15: 0 | C15: 0 | D15: 43.46 | E15: 19.83 | F15: B | G15: 13 | H15: 0 | I15: 0 | J15: 43.45 | K15: 19.74 | L15: B | M15: 13 | N15: 0 | O15: 0 | P15: 43.44 | Q15: 20.19 | R15: B | S15: 13 | T15: 636946.75 | U15: 497.705 | V15: 6.61 | W15: 3.71 | X15: AB | Y15: 13 | Z15: 405430.56 | AA15: 253.443 | AB15: 6.6 | AC15: 3.55 | AD15: B | AE15: 13 | AF15: 5242.84 | AG15: 974.479 | AH15: 3.03 | AI15: 13.16 | AJ15: B | AK15: 13 | AL15: 314.94 | AM15: 18.872 | AN15: 2.49 | AO15: 17.04 | AP15: AB | AQ15: 1042377.31 | AR15: 1047935.09
A16: 14 | B16: 0 | C16: 0 | D16: 43.28 | E16: 13.71 | G16: 14 | H16: 0 | I16: 0 | J16: 43.26 | K16: 14.25 | M16: 14 | N16: 0 | O16: 0 | P16: 43.26 | Q16: 14.67 | S16: 14 | T16: 621301.88 | U16: 470.503 | V16: 6.61 | W16: 1.72 | X16: A | Y16: 14 | Z16: 444028.22 | AA16: 297.325 | AB16: 6.6 | AC16: 1.46 | AE16: 14 | AF16: 6595.65 | AG16: 1552.013 | AH16: 3 | AI16: 9.8 | AK16: 14 | AL16: 374.83 | AM16: 26.259 | AN16: 2.48 | AO16: 13.99 | AP16: A | AQ16: 1065330.1 | AR16: 1072300.58
A17: 15 | B17: 0 | C17: 0 | D17: 43.14 | E17: 18.32 | F17: B | G17: 15 | H17: 0 | I17: 0 | J17: 43.13 | K17: 18.5 | L17: B | M17: 15 | N17: 0 | O17: 0 | P17: 43.12 | Q17: 19.35 | R17: B | S17: 15 | T17: 698797.88 | U17: 599.429 | V17: 6.62 | W17: 1.13 | X17: AB | Y17: 15 | Z17: 434513.91 | AA17: 291.131 | AB17: 6.6 | AC17: 1.04 | AD17: B | AE17: 15 | AF17: 5287.07 | AG17: 993.671 | AH17: 3.03 | AI17: 12.09 | AJ17: B | AK17: 15 | AL17: 341.07 | AM17: 21.664 | AN17: 2.51 | AO17: 15.83 | AP17: ABC | AQ17: 1133311.79 | AR17: 1138939.93
A18: 16 | B18: 0 | C18: 0 | D18: 43.09 | E18: 23.28 | F18: B | G18: 16 | H18: 0 | I18: 0 | J18: 43.07 | K18: 22.76 | L18: B | M18: 16 | N18: 0 | O18: 0 | P18: 43.07 | Q18: 23.63 | R18: B | S18: 16 | T18: 657451.75 | U18: 526.222 | V18: 6.62 | W18: 1.91 | X18: AB | Y18: 16 | Z18: 397955.09 | AA18: 241.305 | AB18: 6.61 | AC18: 1.87 | AD18: B | AE18: 16 | AF18: 4444.37 | AG18: 700.29 | AH18: 3.06 | AI18: 14.38 | AJ18: B | AK18: 16 | AL18: 230.92 | AM18: 10.039 | AN18: 2.55 | AO18: 18.88 | AP18: AB | AQ18: 1055406.84 | AR18: 1060082.13
A19: 17 | B19: 0 | C19: 0 | D19: 42.41 | E19: 19.73 | F19: B | G19: 17 | H19: 0 | I19: 0 | J19: 42.4 | K19: 19.28 | L19: B | M19: 17 | N19: 0 | O19: 0 | P19: 42.39 | Q19: 20.12 | R19: B | S19: 17 | T19: 674489.63 | U19: 556.431 | V19: 6.62 | W19: 1.24 | X19: AB | Y19: 17 | Z19: 423316.81 | AA19: 271.885 | AB19: 6.61 | AC19: 1.05 | AD19: B | AE19: 17 | AF19: 4868.75 | AG19: 815.203 | AH19: 3.03 | AI19: 10.85 | AJ19: B | AK19: 17 | AL19: 312.31 | AM19: 18.6 | AN19: 2.51 | AO19: 14.64 | AP19: AB | AQ19: 1097806.44 | AR19: 1102987.5
A20: 18 | B20: 0 | C20: 0 | D20: 41.98 | E20: 15.03 | F20: B | G20: 18 | H20: 0 | I20: 0 | J20: 41.96 | K20: 14.98 | L20: B | M20: 18 | N20: 0 | O20: 0 | P20: 41.96 | Q20: 15.87 | R20: B | S20: 18 | T20: 662213.44 | U20: 534.937 | V20: 6.62 | W20: 1.91 | X20: AB | Y20: 18 | Z20: 434154.03 | AA20: 284.623 | AB20: 6.6 | AC20: 1.72 | AD20: B | AE20: 18 | AF20: 6988 | AG20: 1707.722 | AH20: 2.98 | AI20: 5.95 | AJ20: B | AK20: 18 | AL20: 500.32 | AM20: 34.727 | AN20: 2.43 | AO20: 10.48 | AP20: AB | AQ20: 1096367.47 | AR20: 1103855.79
A21: 19 | B21: 0 | C21: 0 | D21: 41.59 | E21: 15.35 | G21: 19 | H21: 0 | I21: 0 | J21: 41.57 | K21: 15.18 | M21: 19 | N21: 0 | O21: 0 | P21: 41.57 | Q21: 15.86 | S21: 19 | T21: 715982.06 | U21: 627.334 | V21: 6.61 | W21: 1.85 | X21: A | Y21: 19 | Z21: 417633.81 | AA21: 266.417 | AB21: 6.6 | AC21: 1.76 | AE21: 19 | AF21: 8057.32 | AG21: 2318.716 | AH21: 3 | AI21: 6.53 | AK21: 19 | AL21: 684.88 | AM21: 70.178 | AN21: 2.47 | AO21: 11.25 | AP21: A | AQ21: 1133615.87 | AR21: 1142358.07
A22: 20 | B22: 0 | C22: 0 | D22: 41.45 | E22: 14.66 | G22: 20 | H22: 0 | I22: 0 | J22: 41.43 | K22: 14.87 | M22: 20 | N22: 0 | O22: 0 | P22: 41.43 | Q22: 15.75 | S22: 20 | T22: 634493.75 | U22: 490.482 | V22: 6.61 | W22: 2.02 | X22: A | Y22: 20 | Z22: 380447.84 | AA22: 222.688 | AB22: 6.6 | AC22: 1.89 | AE22: 20 | AF22: 8509.86 | AG22: 2458.866 | AH22: 3.06 | AI22: 5.89 | AK22: 20 | AL22: 759.5 | AM22: 78.489 | AN22: 2.47 | AO22: 12.02 | AP22: A | AQ22: 1014941.59 | AR22: 1024210.95
A23: 21 | B23: 0 | C23: 0 | D23: 41.19 | E23: 21.72 | G23: 21 | H23: 0 | I23: 0 | J23: 41.17 | K23: 21.25 | M23: 21 | N23: 0 | O23: 0 | P23: 41.17 | Q23: 21.94 | S23: 21 | T23: 594276.75 | U23: 432.504 | V23: 6.61 | W23: 3.61 | X23: A | Y23: 21 | Z23: 374279.84 | AA23: 212.506 | AB23: 6.6 | AC23: 3.54 | AE23: 21 | AF23: 5550.96 | AG23: 1117.086 | AH23: 3.09 | AI23: 13.37 | AK23: 21 | AL23: 302.99 | AM23: 17.52 | AN23: 2.56 | AO23: 19.02 | AP23: A | AQ23: 968556.59 | AR23: 974410.54
A24: 22 | B24: 0 | C24: 0 | D24: 40.57 | E24: 13.08 | F24: ABC | G24: 22 | H24: 0 | I24: 0 | J24: 40.55 | K24: 13.43 | L24: ABC | M24: 22 | N24: 0 | O24: 0 | P24: 40.55 | Q24: 13.78 | R24: ABC | S24: 22 | T24: 669586 | U24: 548.317 | V24: 6.61 | W24: 1.66 | X24: AB | Y24: 22 | Z24: 419296.31 | AA24: 267.571 | AB24: 6.6 | AC24: 1.44 | AD24: B | AE24: 22 | AF24: 6384.01 | AG24: 1410.045 | AH24: 2.97 | AI24: 6.56 | AJ24: B | AK24: 22 | AL24: 482.41 | AM24: 33.314 | AN24: 2.47 | AO24: 11.64 | AP24: AB | AQ24: 1088882.31 | AR24: 1095748.73
A25: 23 | B25: 0 | C25: 0 | D25: 40.63 | E25: 20.64 | F25: B | G25: 23 | H25: 0 | I25: 0 | J25: 40.62 | K25: 20.35 | L25: B | M25: 23 | N25: 4.69 | O25: 0 | P25: 40.62 | Q25: 21.01 | R25: AB | S25: 23 | T25: 708676.31 | U25: 608.536 | V25: 6.62 | W25: 1.87 | X25: AB | Y25: 23 | Z25: 392702.81 | AA25: 235.202 | AB25: 6.6 | AC25: 1.82 | AD25: B | AE25: 23 | AF25: 4701.58 | AG25: 776.356 | AH25: 3.05 | AI25: 13.29 | AJ25: B | AK25: 23 | AL25: 305.05 | AM25: 16.468 | AN25: 2.53 | AO25: 18.78 | AP25: AB | AQ25: 1101383.81 | AR25: 1106390.44
A26: 24 | B26: 0 | C26: 0 | D26: 41.67 | E26: 24.07 | F26: B | G26: 24 | H26: 0 | I26: 0 | J26: 41.66 | K26: 23.26 | L26: B | M26: 24 | N26: 2.33 | O26: 0 | P26: 41.65 | Q26: 23.53 | R26: AB | S26: 24 | T26: 743722.81 | U26: 679.115 | V26: 6.61 | W26: 1.64 | X26: AB | Y26: 24 | Z26: 387873.22 | AA26: 229.346 | AB26: 6.61 | AC26: 1.66 | AD26: B | AE26: 24 | AF26: 4234.49 | AG26: 638.027 | AH26: 3.06 | AI26: 15.54 | AJ26: B | AK26: 24 | AL26: 268.78 | AM26: 12.628 | AN26: 2.56 | AO26: 19.27 | AP26: AB | AQ26: 1131598.36 | AR26: 1136101.63
A27: 25 | B27: 0 | C27: 0 | D27: 44.11 | E27: 23.52 | F27: B | G27: 25 | H27: 0 | I27: 0 | J27: 44.1 | K27: 22.85 | L27: B | M27: 25 | N27: 0 | O27: 0 | P27: 44.09 | Q27: 22.93 | R27: B | S27: 25 | T27: 641420.81 | U27: 499.109 | V27: 6.62 | W27: 1.6 | X27: AB | Y27: 25 | Z27: 393552.13 | AA27: 237.68 | AB27: 6.61 | AC27: 1.48 | AD27: B | AE27: 25 | AF27: 4113.51 | AG27: 599.719 | AH27: 3.02 | AI27: 15.59 | AJ27: B | AK27: 25 | AL27: 239.06 | AM27: 10.592 | AN27: 2.57 | AO27: 18.72 | AP27: AB | AQ27: 1034972.94 | AR27: 1039325.51
A28: 26 | B28: 0 | C28: 0 | D28: 45.1 | E28: 23.44 | F28: B | G28: 26 | H28: 0 | I28: 0 | J28: 45.09 | K28: 23.05 | L28: B | M28: 26 | N28: 0 | O28: 0 | P28: 45.08 | Q28: 23.14 | R28: B | S28: 26 | T28: 642612.94 | U28: 507.539 | V28: 6.61 | W28: 2.66 | X28: AB | Y28: 26 | Z28: 351913.22 | AA28: 191.784 | AB28: 6.61 | AC28: 2.68 | AD28: B | AE28: 26 | AF28: 3861.5 | AG28: 539.259 | AH28: 3.03 | AI28: 16.48 | AJ28: B | AK28: 26 | AL28: 228.54 | AM28: 13.897 | AN28: 2.54 | AO28: 21.2 | AP28: AB | AQ28: 994526.16 | AR28: 998616.2
A29: 27 | B29: 0 | C29: 0 | D29: 45.18 | E29: 24.86 | G29: 27 | H29: 0 | I29: 0 | J29: 45.16 | K29: 24.36 | M29: 27 | N29: 0 | O29: 0 | P29: 45.15 | Q29: 24.42 | S29: 27 | T29: 635584.75 | U29: 493.767 | V29: 6.61 | W29: 2.11 | X29: A | Y29: 27 | Z29: 316881.31 | AA29: 158.553 | AB29: 6.61 | AC29: 2.33 | AE29: 27 | AF29: 4075.74 | AG29: 616.637 | AH29: 3.02 | AI29: 16.64 | AK29: 27 | AL29: 245.81 | AM29: 12.601 | AN29: 2.45 | AO29: 19.98 | AP29: A | AQ29: 952466.06 | AR29: 956787.61
A30: 28 | B30: 0 | C30: 0 | D30: 45.15 | E30: 26.84 | G30: 28 | H30: 0 | I30: 0 | J30: 45.14 | K30: 26.22 | M30: 28 | N30: 0 | O30: 0 | P30: 45.13 | Q30: 26.58 | S30: 28 | T30: 617528.94 | U30: 467.136 | V30: 6.62 | W30: 2.54 | X30: A | Y30: 28 | Z30: 336888.44 | AA30: 173.743 | AB30: 6.61 | AC30: 2.6 | AE30: 28 | AF30: 3764.2 | AG30: 541.127 | AH30: 3.06 | AI30: 18.55 | AK30: 28 | AL30: 228.36 | AM30: 11.363 | AN30: 2.41 | AO30: 22.66 | AP30: A | AQ30: 954417.38 | AR30: 958409.94
A31: 29 | B31: 0 | C31: 0 | D31: 44.69 | E31: 27.27 | F31: B | G31: 29 | H31: 0 | I31: 0 | J31: 44.68 | K31: 26.74 | L31: B | M31: 29 | N31: 0 | O31: 0 | P31: 44.67 | Q31: 26.91 | R31: B | S31: 29 | T31: 595980.75 | U31: 436.656 | V31: 6.61 | W31: 2.96 | X31: AB | Y31: 29 | Z31: 367960.56 | AA31: 207.949 | AB31: 6.61 | AC31: 2.9 | AD31: B | AE31: 29 | AF31: 3383.15 | AG31: 421.778 | AH31: 3.08 | AI31: 19.87 | AJ31: B | AK31: 29 | AL31: 188.7 | AM31: 8.003 | AN31: 2.43 | AO31: 24.34 | AP31: AB | AQ31: 963941.31 | AR31: 967513.16
A32: 30 | B32: 0 | C32: 0 | D32: 44.11 | E32: 27.18 | F32: B | G32: 30 | H32: 0 | I32: 0 | J32: 44.1 | K32: 26.87 | L32: B | M32: 30 | N32: 0 | O32: 0 | P32: 44.08 | Q32: 26.91 | R32: B | S32: 30 | T32: 599239.94 | U32: 442.673 | V32: 6.61 | W32: 2.35 | X32: B | Y32: 30 | Z32: 373679.66 | AA32: 213.9 | AB32: 6.6 | AC32: 2.45 | AD32: B | AE32: 30 | AF32: 2952.24 | AG32: 314.036 | AH32: 3.13 | AI32: 22.21 | AJ32: B | AK32: 30 | AL32: 149.02 | AM32: 5.895 | AN32: 2.46 | AO32: 25.14 | AP32: AB | AQ32: 972919.6 | AR32: 976020.86
A33: 31 | B33: 0 | C33: 0 | D33: 43.78 | E33: 28.13 | F33: B | G33: 31 | H33: 0 | I33: 0 | J33: 43.77 | K33: 27.71 | L33: B | M33: 31 | N33: 0 | O33: 0 | P33: 43.75 | Q33: 27.63 | R33: B | S33: 31 | T33: 622210.81 | U33: 481.088 | V33: 6.61 | W33: 4.75 | X33: AB | Y33: 31 | Z33: 311376.56 | AA33: 154.394 | AB33: 6.61 | AC33: 5.16 | AD33: B | AE33: 31 | AF33: 2828.17 | AG33: 298.738 | AH33: 3.09 | AI33: 24.11 | AJ33: B | AK33: 31 | AL33: 149.82 | AM33: 6.146 | AN33: 2.44 | AO33: 25.92 | AP33: AB | AQ33: =B33+H33+N33+T33+Z33 -> 933587.37 | AR33: 936565.36
A34: Итого | B34: 0 | C34: 0 | D34: 42.14 | E34: 24.43 | F34: ABC | G34: Итого | H34: 0 | I34: 0 | J34: 42.13 | K34: 23.83 | L34: ABC | M34: Итого | N34: 7.02 | O34: 0 | P34: 42.12 | Q34: 24.7 | R34: ABC | S34: Итого | T34: 20290542.81 | U34: 529.538 | V34: 6.61 | W34: 2.8 | X34: AB | Y34: Итого | Z34: 12547639.97 | AA34: 253.881 | AB34: 6.6 | AC34: 2.71 | AD34: B | AE34: Итого | AF34: 151987.45 | AG34: 849.447 | AH34: 3.03 | AI34: 14 | AJ34: ABC | AK34: Итого | AL34: 9586.49 | AM34: 74.334 | AN34: 2.47 | AO34: 11.63 | AP34: ABC | AQ34: =SUM(AQ3:AQ33) -> 32838189.84 | AR34: 32999763.78
